fUSD/lending_fUSD_20251011
["ID","MTS","AMOUNT","RATE_DAILY","PERIOD"]
[390895816,1760203264950,-500.0,0.00038356,30]
[390895817,1760203264976,-500.0,0.00038356,30]
[390895818,1760203265002,-500.0,0.00038356,30]
[390895819,1760203265028,-500.0,0.00038356,30]
[390895820,1760203265054,-441.29933208,0.00038356,30]
[390895821,1760203265082,-1247.73,0.00038356,30]
[390895822,1760203265108,-500.0,0.00038356,30]
[390895823,1760203265134,-500.0,0.00038356,30]
[390895824,1760203265160,-500.0,0.00038356,30]
[390895825,1760203265186,-500.0,0.00038356,30]
[390895826,1760203265214,-500.0,0.00038356,30]
[390895827,1760203265239,-500.0,0.00038356,30]
[390895828,1760203265266,-500.0,0.00038356,30]
[390895829,1760203265791,-500.0,0.00038356,30]
[390895830,1760203265819,-500.0,0.00038356,30]
[390895831,1760203265850,-500.0,0.00038356,30]
[390895832,1760203265876,-500.0,0.00038356,30]
[390895833,1760203265903,-508.41,0.00038356,30]
[390895834,1760203265929,-500.0,0.00038356,30]
[390895835,1760203265955,-500.0,0.00038356,30]
[390895836,1760203265982,-500.0,0.00038356,30]
[390895837,1760203266008,-957.9,0.00038356,30]
[390895838,1760203266036,-500.0,0.00038356,30]
[390895839,1760203266063,-500.0,0.00038356,30]
[390895840,1760203266089,-500.0,0.00038356,30]
[390895841,1760203266120,-500.0,0.00038356,30]
[390895842,1760203266147,-500.0,0.00038356,30]
[390895843,1760203266174,-500.0,0.00038356,30]
[390895844,1760203266201,-641.33,0.00038356,30]
[390895845,1760203266228,-500.0,0.00038356,30]
[390895846,1760203266257,-500.0,0.00038356,30]
[390895847,1760203266283,-500.0,0.00038356,30]
[390895848,1760203266310,-1070.56,0.00038356,30]
[390895849,1760203266338,-500.0,0.00038356,30]
[390895850,1760203266365,-500.0,0.00038356,30]
[390895851,1760203266391,-500.0,0.00038356,30]
[390895852,1760203266418,-500.0,0.00038356,30]
[390895853,1760203266443,-500.0,0.00038356,30]
[390895854,1760203266471,-500.0,0.00038356,30]
[390895855,1760203266497,-1264.37,0.00038356,30]
[390895856,1760203266525,-500.0,0.00038356,30]
[390895857,1760203266552,-500.0,0.00038356,30]
[390895858,1760203266579,-500.0,0.00038356,30]
[390895859,1760203266610,-422.80745564,0.00038356,30]
[390895860,1760203266637,-500.0,0.00038356,30]
[390895861,1760203266664,-500.0,0.00038356,30]
[390895862,1760203266690,-500.0,0.00038356,30]
[390895863,1760203266717,-500.0,0.00038356,30]
[390895864,1760203266744,-500.0,0.00038356,30]
[390895865,1760203266770,-833.62,0.00038356,30]
[390895866,1760203266797,-500.0,0.00038356,30]
[390895867,1760203266824,-500.0,0.00038356,30]
[390895868,1760203266850,-500.0,0.00038356,30]
[390895869,1760203266879,-727.76,0.00038356,30]
[390895870,1760203266906,-500.0,0.00038356,30]
[390895871,1760203266934,-500.0,0.00038356,30]
[390895872,1760203266961,-500.0,0.00038356,30]
[390895873,1760203266988,-500.0,0.00038356,30]
[390895874,1760203267016,-500.0,0.00038356,30]
[390895875,1760203267044,-500.0,0.00038356,30]
[390895876,1760203267071,-500.0,0.00038356,30]
[390895878,1760203267098,-500.0,0.00038356,30]
[390895879,1760203267125,-500.0,0.00038356,30]
[390895880,1760203267152,-500.0,0.00038356,30]
[390895881,1760203267179,-500.0,0.00038356,30]
[390895882,1760203267207,-500.0,0.00038356,30]
[390895883,1760203267235,-500.0,0.00038356,30]
[390895884,1760203267265,-500.0,0.00038356,30]
[390895885,1760203267294,-500.0,0.00038356,30]
[390895886,1760203267322,-157.96488262,0.00038356,30]
[390895887,1760203267351,-500.0,0.00038356,30]
[390895888,1760203267379,-500.0,0.00038356,30]
[390895889,1760203267408,-500.0,0.00038356,30]
[390895890,1760203267443,-901.82,0.00038356,30]
[390895891,1760203267474,-500.0,0.00038356,30]
[390895892,1760203267503,-500.0,0.00038356,30]
[390895893,1760203267529,-500.0,0.00038356,30]
[390895894,1760203267555,-733.56,0.00038356,30]
[390895895,1760203267582,-500.0,0.00038356,30]
[390895896,1760203267608,-500.0,0.00038356,30]
[390895897,1760203267635,-401.76996405,0.00038356,30]
[390895898,1760203267661,-500.0,0.00038356,30]
[390895899,1760203267688,-828.5,0.00038356,30]
[390895900,1760203267714,-500.0,0.00038356,30]
[390895901,1760203267858,-500.0,0.00038356,30]
[390895902,1760203267885,-500.0,0.00038356,30]
[390895903,1760203267912,-880.08,0.00038356,30]
[390895904,1760203267937,-500.0,0.00038356,30]
[390895905,1760203267963,-400.98589503,0.00038356,30]
[390895906,1760203267989,-500.0,0.00038356,30]
[390895907,1760203268015,-500.0,0.00038356,30]
[390895908,1760203268042,-500.0,0.00038356,30]
[390895909,1760203268068,-500.0,0.00038356,30]
[390895910,1760203268095,-500.0,0.00038356,30]
[390895911,1760203268121,-500.0,0.00038356,30]
[390895912,1760203268147,-500.0,0.00038356,30]
[390895913,1760203268174,-1226.04,0.00038356,30]
[390895914,1760203268201,-525.94,0.00038356,30]
[390895915,1760203268228,-500.0,0.00038356,30]
[390895916,1760203268255,-500.0,0.00038356,30]
[390895917,1760203268284,-500.0,0.00038356,30]
[390895918,1760203268310,-500.0,0.00038356,30]
[390895919,1760203268337,-500.0,0.00038356,30]
[390895920,1760203268362,-500.0,0.00038356,30]
[390895921,1760203268389,-500.0,0.00038356,30]
[390895922,1760203268415,-500.0,0.00038356,30]
[390895923,1760203268440,-500.0,0.00038356,30]
[390895924,1760203268466,-500.0,0.00038356,30]
[390895925,1760203268492,-500.0,0.00038356,30]
[390895926,1760203268517,-668.46,0.00038356,30]
[390895927,1760203268544,-1797.71,0.00038356,30]
[390895928,1760203268568,-500.0,0.00038356,30]
[390895929,1760203268593,-500.0,0.00038356,30]
[390895930,1760203268618,-500.0,0.00038356,30]
[390895931,1760203268643,-500.0,0.00038356,30]
[390895932,1760203268669,-500.0,0.00038356,30]
[390895933,1760203268696,-500.0,0.00038356,30]
[390895934,1760203268724,-500.0,0.00038356,30]
[390895935,1760203268751,-500.0,0.00038356,30]
[390895936,1760203268777,-1445.17,0.00038356,30]
[390895938,1760203268803,-500.0,0.00038356,30]
[390895939,1760203268829,-500.0,0.00038356,30]
[390895940,1760203268855,-500.0,0.00038356,30]
[390895941,1760203268880,-500.0,0.00038356,30]
[390895942,1760203268906,-500.0,0.00038356,30]
[390895943,1760203268932,-1240.19,0.00038356,30]
[390895944,1760203268959,-500.0,0.00038356,30]
[390895945,1760203268991,-500.0,0.00038356,30]
[390895946,1760203269018,-500.0,0.00038356,30]
[390895947,1760203269046,-501.03419035,0.00038356,30]
[390895948,1760203269073,-500.0,0.00038356,30]
[390895949,1760203269099,-1011.41,0.00038356,30]
[390895950,1760203269132,-500.0,0.00038356,30]
[390895951,1760203269158,-1227.78,0.00038356,30]
[390895952,1760203269184,-500.0,0.00038356,30]
[390895953,1760203269210,-721.14,0.00038356,30]
[390895954,1760203269237,-500.0,0.00038356,30]
[390895955,1760203269265,-500.0,0.00038356,30]
[390895956,1760203269293,-500.0,0.00038356,30]
[390895957,1760203269320,-500.0,0.00038356,30]
[390895958,1760203269348,-500.36232299,0.00038356,30]
[390895959,1760203269376,-500.0,0.00038356,30]
[390895960,1760203269405,-500.0,0.00038356,30]
[390895961,1760203269433,-500.0,0.00038356,30]
[390895962,1760203269461,-500.0,0.00038356,30]
[390895963,1760203269490,-500.0,0.00038356,30]
[390895964,1760203269517,-500.0,0.00038356,30]
[390895965,1760203269542,-500.0,0.00038356,30]
[390895966,1760203269567,-500.0,0.00038356,30]
[390895967,1760203269593,-500.0,0.00038356,30]
[390895968,1760203269618,-500.0,0.00038356,30]
[390895969,1760203269643,-500.0,0.00038356,30]
[390895970,1760203269668,-500.0,0.00038356,30]
[390895971,1760203269694,-500.0,0.00038356,30]
[390895972,1760203269721,-899.96,0.00038356,30]
[390895973,1760203269746,-881.51,0.00038356,30]
[390895974,1760203269771,-500.0,0.00038356,30]
[390895975,1760203269796,-441.62086291,0.00038356,30]
[390895976,1760203269822,-500.0,0.00038356,30]
[390895977,1760203269848,-1494.95,0.00038356,30]
[390895978,1760203269875,-500.0,0.00038356,30]
[390895979,1760203269900,-500.0,0.00038356,30]
[390895980,1760203269925,-950.76,0.00038356,30]
[390895981,1760203269950,-500.0,0.00038356,30]
[390895982,1760203269976,-500.0,0.00038356,30]
[390895983,1760203270001,-1007.45,0.00038356,30]
[390895984,1760203270027,-500.0,0.00038356,30]
[390895985,1760203270054,-500.0,0.00038356,30]
[390895986,1760203270081,-500.0,0.00038356,30]
[390895987,1760203270111,-500.0,0.00038356,30]
[390895988,1760203270142,-737.95,0.00038356,30]
[390895989,1760203270170,-500.0,0.00038356,30]
[390895990,1760203270197,-1227.54,0.00038356,30]
[390895991,1760203270225,-500.0,0.00038356,30]
[390895992,1760203270251,-500.0,0.00038356,30]
[390895993,1760203270281,-953.52,0.00038356,30]
[390895994,1760203270309,-500.0,0.00038356,30]
[390895995,1760203270335,-500.0,0.00038356,30]
[390895996,1760203270361,-500.0,0.00038356,30]
[390895997,1760203270387,-500.0,0.00038356,30]
[390895998,1760203270412,-500.0,0.00038356,30]
[390895999,1760203270446,-500.0,0.00038356,30]
[390896000,1760203270473,-500.0,0.00038356,30]
[390896001,1760203270498,-500.0,0.00038356,30]
[390896002,1760203270524,-500.0,0.00038356,30]
[390896003,1760203270550,-500.0,0.00038356,30]
[390896004,1760203270575,-1280.6,0.00038356,30]
[390896005,1760203270601,-500.0,0.00038356,30]
[390896006,1760203270627,-500.0,0.00038356,30]
[390896007,1760203270652,-500.0,0.00038356,30]
[390896008,1760203270806,-500.0,0.00038356,30]
[390896009,1760203270832,-500.0,0.00038356,30]
[390896010,1760203270857,-500.0,0.00038356,30]
[390896011,1760203270883,-500.0,0.00038356,30]
[390896012,1760203270917,-500.0,0.00038356,30]
[390896013,1760203270942,-582.76,0.00038356,30]
[390896014,1760203270968,-500.0,0.00038356,30]
[390896015,1760203270993,-500.0,0.00038356,30]
[390896016,1760203271018,-500.0,0.00038356,30]
[390896017,1760203271044,-698.08,0.00038356,30]
[390896018,1760203271069,-500.0,0.00038356,30]
[390896019,1760203271094,-500.0,0.00038356,30]
[390896020,1760203271120,-801.18,0.00038356,30]
[390896021,1760203271145,-500.0,0.00038356,30]
[390896022,1760203271172,-843.03,0.00038356,30]
[390896023,1760203271198,-500.0,0.00038356,30]
[390896024,1760203271223,-500.0,0.00038356,30]
[390896025,1760203271257,-553.35,0.00038356,30]
[390896026,1760203271290,-684.92,0.00038356,30]
[390896027,1760203271316,-504.19503569,0.00038356,30]
[390896028,1760203271341,-500.0,0.00038356,30]
[390896029,1760203271366,-2442.87,0.00038356,30]
[390896030,1760203271391,-500.0,0.00038356,30]
[390896031,1760203271416,-500.0,0.00038356,30]
[390896032,1760203271441,-844.18,0.00038356,30]
[390896033,1760203271467,-500.73603477,0.00038356,30]
[390896034,1760203271495,-960.06,0.00038356,30]
[390896035,1760203271520,-500.0,0.00038356,30]
[390896036,1760203271545,-500.0,0.00038356,30]
[390896037,1760203271570,-500.0,0.00038356,30]
[390896038,1760203271594,-500.0,0.00038356,30]
[390896039,1760203271618,-300.35577869,0.00038356,30]
[390896040,1760203271643,-500.0,0.00038356,30]
[390896041,1760203271668,-863.6,0.00038356,30]
[390896042,1760203271692,-1516.23,0.00038356,30]
[390896043,1760203271718,-2132.34,0.00038356,30]
[390896044,1760203271743,-499.03847016,0.00038356,30]
[390896045,1760203271768,-500.0,0.00038356,30]
[390896046,1760203271794,-787.55,0.00038356,30]
[390896047,1760203271821,-500.0,0.00038356,30]
[390896048,1760203271848,-500.0,0.00038356,30]
[390896049,1760203271874,-500.0,0.00038356,30]
[390896050,1760203271900,-1370.89,0.00038356,30]
[390896051,1760203271929,-500.0,0.00038356,30]
[390896052,1760203271956,-500.0,0.00038356,30]
[390896053,1760203271983,-409.26598008,0.00038356,30]
[390896054,1760203272010,-500.0,0.00038356,30]
[390896055,1760203272037,-500.0,0.00038356,30]
[390896056,1760203272063,-1603.38,0.00038356,30]
[390896057,1760203272089,-500.0,0.00038356,30]
[390896058,1760203272114,-1695.04,0.00038356,30]
[390896059,1760203272139,-912.59,0.00038356,30]
[390896060,1760203272165,-1650.35,0.00038356,30]
[390896061,1760203272192,-500.0,0.00038356,30]
[390896062,1760203272218,-876.06,0.00038356,30]
[390896063,1760203272246,-500.0,0.00038356,30]
[390896064,1760203272276,-500.58472304,0.00038356,30]
[390896065,1760203272300,-500.0,0.00038356,30]
[390896066,1760203272325,-500.0,0.00038356,30]
[390896067,1760203272352,-500.0,0.00038356,30]
[390896068,1760203272377,-500.0,0.00038356,30]
[390896069,1760203272402,-500.0,0.00038356,30]
[390896070,1760203272427,-2320.15,0.00038356,30]
[390896071,1760203272452,-500.0,0.00038356,30]
[390896072,1760203272479,-500.0,0.00038356,30]
[390896073,1760203272504,-500.0,0.00038356,30]
[390896074,1760203272539,-500.0,0.00038356,30]
[390896075,1760203272566,-500.0,0.00038356,30]
[390896076,1760203272590,-500.0,0.00038356,30]
[390896077,1760203272616,-501.21212632,0.00038356,30]
[390896078,1760203272644,-405.35893059,0.00038356,30]
[390896079,1760203272668,-760.08,0.00038356,30]
[390896080,1760203272694,-592.6,0.00038356,30]
[390896081,1760203272719,-500.0,0.00038356,30]
[390896082,1760203272746,-500.0,0.00038356,30]
[390896083,1760203272771,-500.0,0.00038356,30]
[390896084,1760203272797,-500.0,0.00038356,30]
[390896085,1760203272822,-485.35163667,0.00038356,30]
[390896086,1760203272849,-500.0,0.00038356,30]
[390896087,1760203272874,-500.0,0.00038356,30]
[390896088,1760203272899,-500.0,0.00038356,30]
[390896089,1760203272924,-1033.86,0.00038356,30]
[390896090,1760203272949,-530.37236909,0.00038356,30]
[390896091,1760203272975,-500.0,0.00038356,30]
[390896092,1760203273001,-500.0,0.00038356,30]
[390896093,1760203273028,-500.0,0.00038356,30]
[390896094,1760203273055,-500.0,0.00038356,30]
[390896095,1760203273080,-191.90326314,0.00038356,30]
[390896096,1760203273106,-500.0,0.00038356,30]
[390896097,1760203273132,-500.0,0.00038356,30]
[390896098,1760203273494,-500.0,0.00038356,30]
[390896099,1760203273522,-500.0,0.00038356,30]
[390896100,1760203273550,-500.0,0.00038356,30]
[390896101,1760203273576,-500.0,0.00038356,30]
[390896102,1760203273602,-842.6,0.00038356,30]
[390896103,1760203273628,-500.0,0.00038356,30]
[390896104,1760203273654,-400.47434729,0.00038356,30]
[390896105,1760203273680,-500.0,0.00038356,30]
[390896106,1760203273707,-500.0,0.00038356,30]
[390896107,1760203273733,-500.0,0.00038356,30]
[390896108,1760203273758,-500.0,0.00038356,30]
[390896109,1760203273784,-2009.13,0.00038356,30]
[390896110,1760203273810,-641.67,0.00038356,30]
[390896111,1760203273835,-500.0,0.00038356,30]
[390896112,1760203273861,-359.43918056,0.00038356,30]
[390896113,1760203273887,-500.0,0.00038356,30]
[390896114,1760203273912,-500.0,0.00038356,30]
[390896115,1760203273938,-500.0,0.00038356,30]
[390896116,1760203273964,-500.0,0.00038356,30]
[390896117,1760203273991,-2271.06,0.00038356,30]
[390896118,1760203274017,-511.13,0.00038356,30]
[390896119,1760203274044,-500.0,0.00038356,30]
[390896120,1760203274071,-500.0,0.00038356,30]
[390896121,1760203274098,-500.0,0.00038356,30]
[390896122,1760203274127,-602.13,0.00038356,30]
[390896123,1760203274154,-1411.05,0.00038356,30]
[390896124,1760203274181,-537.03,0.00038356,30]
[390896125,1760203274207,-500.0,0.00038356,30]
[390896126,1760203274234,-469.71344262,0.00038356,30]
[390896127,1760203274263,-500.0,0.00038356,30]
[390896128,1760203274289,-1461.82,0.00038356,30]
[390896129,1760203274318,-529.63,0.00038356,30]
[390896130,1760203274345,-500.0,0.00038356,30]
[390896131,1760203274371,-1413.26,0.00038356,30]
[390896132,1760203274397,-500.0,0.00038356,30]
[390896133,1760203274422,-500.0,0.00038356,30]
[390896134,1760203274449,-2314.39,0.00038356,30]
[390896135,1760203274477,-1258.97,0.00038356,30]
[390896136,1760203274503,-500.0,0.00038356,30]
[390896137,1760203274529,-500.0,0.00038356,30]
[390896138,1760203274555,-1095.07,0.00038356,30]
[390896139,1760203274580,-500.0,0.00038356,30]
[390896140,1760203274606,-500.0,0.00038356,30]
[390896141,1760203274632,-1050.39,0.00038356,30]
[390896142,1760203274659,-637.75,0.00038356,30]
[390896143,1760203274687,-500.0,0.00038356,30]
[390896144,1760203274714,-500.0,0.00038356,30]
[390896145,1760203274742,-500.0,0.00038356,30]
[390896146,1760203274768,-500.0,0.00038356,30]
[390896147,1760203274794,-400.0,0.00038356,30]
[390896148,1760203274820,-500.0,0.00038356,30]
[390896149,1760203274845,-500.0,0.00038356,30]
[390896150,1760203274870,-1039.38,0.00038356,30]
[390896151,1760203274895,-500.0,0.00038356,30]
[390896152,1760203274920,-500.0,0.00038356,30]
[390896153,1760203274946,-500.0,0.00038356,30]
[390896154,1760203274973,-683.47,0.00038356,30]
[390896155,1760203275000,-500.0,0.00038356,30]
[390896156,1760203275027,-500.0,0.00038356,30]
[390896157,1760203275053,-976.79,0.00038356,30]
[390896158,1760203275079,-500.0,0.00038356,30]
[390896159,1760203275105,-500.0,0.00038356,30]
[390896160,1760203275131,-500.0,0.00038356,30]
[390896161,1760203275157,-500.0,0.00038356,30]
[390896162,1760203275183,-500.0,0.00038356,30]
[390896163,1760203275208,-500.0,0.00038356,30]
[390896164,1760203275234,-500.0,0.00038356,30]
[390896165,1760203275261,-1985.48,0.00038356,30]
[390896166,1760203275289,-301.52297324,0.00038356,30]
[390896167,1760203275316,-1178.25,0.00038356,30]
[390896168,1760203275342,-500.0,0.00038356,30]
[390896169,1760203275367,-640.21,0.00038356,30]
[390896170,1760203275482,-500.69561308,0.00038356,30]
[390896171,1760203275508,-500.0,0.00038356,30]
[390896172,1760203275533,-1830.41,0.00038356,30]
[390896173,1760203275558,-500.0,0.00038356,30]
[390896174,1760203275584,-500.0,0.00038356,30]
[390896175,1760203275609,-500.0,0.00038356,30]
[390896176,1760203275633,-801.8,0.00038356,30]
[390896177,1760203275659,-500.0,0.00038356,30]
[390896178,1760203275683,-500.0,0.00038356,30]
[390896179,1760203275709,-505.67235192,0.00038356,30]
[390896180,1760203275737,-3591.88,0.00038356,30]
[390896181,1760203275767,-500.0,0.00038356,30]
[390896182,1760203275799,-1022.49,0.00038356,30]
[390896183,1760203275828,-500.0,0.00038356,30]
[390896184,1760203275856,-500.0,0.00038356,30]
[390896185,1760203275882,-500.0,0.00038356,30]
[390896186,1760203275911,-500.0,0.00038356,30]
[390896187,1760203275937,-670.98,0.00038356,30]
[390896188,1760203275964,-500.0,0.00038356,30]
[390896189,1760203275991,-447.04370435,0.00038356,30]
[390896190,1760203276017,-500.0,0.00038356,30]
[390896191,1760203276044,-2322.68,0.00038356,30]
[390896192,1760203276071,-500.0,0.00038356,30]
[390896193,1760203276098,-500.0,0.00038356,30]
[390896194,1760203276124,-500.0,0.00038356,30]
[390896195,1760203276151,-500.0,0.00038356,30]
[390896196,1760203276178,-500.0,0.00038356,30]
[390896197,1760203276204,-500.0,0.00038356,30]
[390896198,1760203276231,-500.0,0.00038356,30]
[390896199,1760203276256,-500.0,0.00038356,30]
[390896200,1760203276288,-698.86,0.00038356,30]
[390896201,1760203276316,-400.0,0.00038356,30]
[390896202,1760203276343,-788.25,0.00038356,30]
[390896203,1760203276368,-500.0,0.00038356,30]
[390896204,1760203276394,-523.66,0.00038356,30]
[390896205,1760203276420,-500.0,0.00038356,30]
[390896206,1760203276445,-500.0,0.00038356,30]
[390896207,1760203276471,-500.0,0.00038356,30]
[390896208,1760203276497,-500.0,0.00038356,30]
[390896209,1760203276523,-643.44,0.00038356,30]
[390896210,1760203276549,-500.0,0.00038356,30]
[390896211,1760203276574,-669.5,0.00038356,30]
[390896212,1760203276600,-1362.3,0.00038356,30]
[390896213,1760203276625,-500.0,0.00038356,30]
[390896214,1760203276651,-500.0,0.00038356,30]
[390896215,1760203276676,-3858.76,0.00038356,30]
[390896216,1760203276701,-500.0,0.00038356,30]
[390896217,1760203276727,-500.0,0.00038356,30]
[390896218,1760203276754,-736.81,0.00038356,30]
[390896219,1760203276781,-2032.7,0.00038356,30]
[390896220,1760203276809,-500.0,0.00038356,30]
[390896221,1760203276835,-500.0,0.00038356,30]
[390896222,1760203276862,-500.0,0.00038356,30]
[390896223,1760203276888,-500.0,0.00038356,30]
[390896224,1760203276913,-500.0,0.00038356,30]
[390896225,1760203276939,-500.0,0.00038356,30]
[390896226,1760203276965,-648.93,0.00038356,30]
[390896227,1760203276992,-710.66,0.00038356,30]
[390896228,1760203277018,-580.97,0.00038356,30]
[390896229,1760203277044,-500.0,0.00038356,30]
[390896230,1760203277070,-500.0,0.00038356,30]
[390896231,1760203277096,-500.0,0.00038356,30]
[390896232,1760203277122,-694.39,0.00038356,30]
[390896233,1760203277148,-500.0,0.00038356,30]
[390896234,1760203277174,-789.63,0.00038356,30]
[390896235,1760203277199,-500.0,0.00038356,30]
[390896236,1760203277225,-500.0,0.00038356,30]
[390896237,1760203277251,-500.0,0.00038356,30]
[390896238,1760203277280,-500.0,0.00038356,30]
[390896239,1760203277306,-500.0,0.00038356,30]
[390896240,1760203277331,-500.0,0.00038356,120]
[390896241,1760203277359,-2133.27,0.00038356,30]
[390896242,1760203277385,-1338.87,0.00038356,30]
[390896243,1760203277414,-640.62,0.00038356,30]
[390896244,1760203277438,-500.0,0.00038356,30]
[390896245,1760203277463,-500.0,0.00038356,30]
[390896246,1760203277488,-1761.97,0.00038356,30]
[390896247,1760203277514,-500.0,0.00038356,30]
[390896248,1760203277538,-510.23287821,0.00038356,30]
[390896249,1760203277564,-500.22601761,0.00038356,30]
[390896250,1760203277589,-500.0,0.00038356,30]
[390896251,1760203277615,-500.0,0.00038356,30]
[390896252,1760203277640,-500.0,0.00038356,30]
[390896253,1760203277666,-298.39340109,0.00038356,30]
[390896254,1760203277691,-619.84,0.00038356,30]
[390896255,1760203277717,-500.0,0.00038356,30]
[390896256,1760203277742,-500.0,0.00038356,30]
[390896257,1760203277767,-500.0,0.00038356,30]
[390896258,1760203277793,-1286.23,0.00038356,30]
[390896259,1760203277818,-4201.79,0.00038356,30]
[390896260,1760203277844,-2078.09,0.00038356,30]
[390896261,1760203277868,-500.0,0.00038356,30]
[390896262,1760203277893,-500.0,0.00038356,30]
[390896263,1760203277918,-500.0,0.00038356,30]
[390896264,1760203277944,-401.71855268,0.00038356,30]
[390896265,1760203277970,-4876.48,0.00038356,30]
[390896266,1760203277996,-500.0,0.00038356,30]
[390896267,1760203278021,-500.0,0.00038356,30]
[390896268,1760203278050,-500.0,0.00038356,30]
[390896269,1760203278076,-4263.86,0.00038356,30]
[390896270,1760203278103,-500.0,0.00038356,30]
[390896271,1760203278128,-500.0,0.00038356,30]
[390896272,1760203278155,-500.0,0.00038356,30]
[390896273,1760203278181,-500.0,0.00038356,30]
[390896274,1760203278207,-500.0,0.00038356,30]
[390896275,1760203278399,-500.0,0.00038356,30]
[390896276,1760203278425,-500.0,0.00038356,30]
[390896277,1760203278452,-500.0,0.00038356,30]
[390896278,1760203278478,-1409.3,0.00038356,30]
[390896279,1760203278503,-958.78,0.00038356,30]
[390896280,1760203278528,-500.0,0.00038356,30]
[390896281,1760203278553,-500.0,0.00038356,30]
[390896282,1760203278578,-500.0,0.00038356,30]
[390896283,1760203278604,-1600.66,0.00038356,30]
[390896284,1760203278630,-500.0,0.00038356,30]
[390896285,1760203278657,-500.0,0.00038356,30]
[390896286,1760203278684,-1330.15,0.00038356,30]
[390896287,1760203278709,-4055.68,0.00038356,30]
[390896288,1760203278735,-500.0,0.00038356,30]
[390896289,1760203278760,-500.0,0.00038356,30]
[390896290,1760203278786,-2543.85,0.00038356,30]
[390896291,1760203278813,-443.42354793,0.00038356,30]
[390896292,1760203278839,-686.89,0.00038356,30]
[390896293,1760203278865,-1268.82,0.00038356,30]
[390896294,1760203278891,-500.0,0.00038356,30]
[390896295,1760203278919,-1298.87,0.00038356,30]
[390896296,1760203278944,-500.0,0.00038356,30]
[390896297,1760203278970,-2386.2,0.00038356,30]
[390896298,1760203278998,-399.04438316,0.00038356,30]
[390896299,1760203279024,-3786.06,0.00038356,30]
[390896300,1760203279053,-500.0,0.00038356,30]
[390896301,1760203279079,-3230.83,0.00038356,30]
[390896302,1760203279104,-981.71,0.00038356,30]
[390896303,1760203279130,-500.0,0.00038356,30]
[390896304,1760203279156,-500.0,0.00038356,30]
[390896305,1760203279181,-1896.04,0.00038356,30]
[390896306,1760203279207,-500.0,0.00038356,30]
[390896307,1760203279233,-500.0,0.00038356,30]
[390896308,1760203279261,-500.0,0.00038356,30]
[390896309,1760203279286,-500.0,0.00038356,30]
[390896310,1760203279312,-500.0,0.00038356,30]
[390896311,1760203279338,-500.0,0.00038356,30]
[390896312,1760203279363,-500.0,0.00038356,30]
[390896313,1760203279389,-1978.84,0.00038356,30]
[390896314,1760203279414,-500.0,0.00038356,30]
[390896315,1760203279439,-1821.29,0.00038356,30]
[390896316,1760203279464,-2233.27,0.00038356,30]
[390896317,1760203279489,-2885.29,0.00038356,30]